Cogmind - Beta 16.1 @@@ ROGUE MODE // 2026.02.23 @ 02:44:21 Player: Lyra Result: Destroyed by X-57 Shotgunner with Shotgun Performance ------------- Evolutions (3) 1500 Regions Visited (6) 1200 Robots Destroyed (71) 355 Value Destroyed (2132) 2132 Prototype IDs (2) 40 Alien Tech Used (0) 0 Bonus (254) 254 TOTAL SCORE: 5481 Bonus ------- High Alert Combat Kills 207 Follower Combat Kills 50 Friendly Fire -3 Cogmind --------- Core Integrity 0/700 Matter 60/300 Energy 27/100 System Corruption 2% Temperature Cool (9) Movement Core (50) Location -7/Factory Parts ------- > --- POWER (3) -------- (None) > --- PROPULSION (3) --- (None) > --- UTILITY (3) ------ Advanced Visual Processing Unit > --- WEAPON (4) ------- (None) > --- INVENTORY (5) ---- Small Storage Unit Layered Light Armor Plating Particle Gun Shotgun Peak State ------------ > --- POWER ------------ Nuclear Core Nuclear Core > --- PROPULSION ------- Titanium Leg Titanium Leg Titanium Leg > --- UTILITY ---------- Large Storage Unit Advanced Visual Processing Unit > --- WEAPON ----------- Heavy EM Pulse Gun Lightning Gun Light Cannon Heavy Rocket Launcher > --- INVENTORY -------- Nuclear Core Titanium Leg Wheel Cryofiber Web Small Storage Unit Heavy Particle Gun Heavy Particle Gun Shotgun Grenade Launcher Grenade Launcher Heavy Rocket Launcher Heavy Rocket Launcher Heavy Rocket Launcher [Rating: 33] Favorites ----------- Power Nuclear Core Engine Light Ion Engine Power Core Nuclear Core Propulsion Titanium Leg Treads Light Treads Leg Titanium Leg Wheel Wheel Utility Large Storage Unit Device Improved Heat Sink Storage Large Storage Unit Processor Advanced Visual Processing Unit Weapon Heavy Rocket Launcher Energy Gun Heavy Particle Gun Ballistic Gun Light Assault Rifle Ballistic Cannon Light Cannon Launcher Heavy Rocket Launcher Build | -11 -10 -10 -9 -9 -8 -7 ------- Run | Yrd Mat Min Mat Min Mat Fac Slots Evolved 6 | . . . 2 . 2 2 Power 2 | . . . 1 . . 1 Propulsion 1 | . . . . . 1 . Utility 1 | . . . . . . 1 Weapon 2 | . . . 1 . 1 . Parts Attached 37 | 5 2 4 1 4 14 7 Power 6 | . . 2 . 1 3 . Engine 3 | . . 2 . 1 . . Core 3 | . . . . . 3 . Reactor . | . . . . . . . Propulsion 10 | 2 . . 1 2 4 1 Treads 2 | . . . . 2 . . Leg 4 | . . . . . 4 . Wheel 4 | 2 . . 1 . . 1 Hover . | . . . . . . . Flight . | . . . . . . . Utility 5 | 1 1 1 . . 2 . Device 2 | . . 1 . . 1 . Storage 2 | 1 1 . . . . . Processor 1 | . . . . . 1 . Hackware . | . . . . . . . Protection . | . . . . . . . Artifact . | . . . . . . . Weapon 16 | 2 1 1 . 1 5 6 Energy Gun 6 | 1 . . . . 3 2 Energy Cannon . | . . . . . . . Ballistic Gun 2 | 1 . . . . . 1 Ballistic Cannon 1 | . . . . 1 . . Launcher 7 | . 1 1 . . 2 3 Special Weapon . | . . . . . . . Impact Weapon . | . . . . . . . Slashing Weapon . | . . . . . . . Piercing Weapon . | . . . . . . . Special Melee Weapon . | . . . . . . . Unidentified Prototypes 2 | . . . . . . 2 Parts Lost 33 | . 1 1 . 4 14 13 Power 6 | . . . . 1 4 1 Propulsion 8 | . . 1 . 2 3 2 Utility 3 | . . . . . 1 2 Weapon 16 | . 1 . . 1 6 8 Highest Loss Streak 12 | . 1 2 . 2 9 12 To Critical Strikes . | . . . . . . . Average Backups 8 | 3 6 7 6 4 10 8 Power . | 1 2 1 1 . . . Propulsion 1 | 1 2 4 3 2 1 . Utility 1 | . . 1 1 1 1 1 Weapon 4 | . 1 1 . . 6 6 Tool/Special . | . . . . . . . Unused Backups 3 | . . . . . . 3 Power . | . . . . . . . Propulsion . | . . . . . . . Utility 1 | . . . . . . 1 Weapon 2 | . . . . . . 2 Tool/Special . | . . . . . . . Average Slot Usage (%) 71 | . 70 83 88 83 75 57 Engine 6 | . . 13 20 21 5 . Core 4 | . . . . . 7 6 Treads 1 | . . . . 3 2 . Leg 9 | . . . . . 19 6 Wheel 6 | . 28 14 22 7 . 6 Device 5 | . . 12 11 11 2 6 Storage 9 | . 14 14 11 11 9 7 Processor 4 | . . . . . 5 7 Energy Gun 6 | . 1 . 9 11 7 6 Ballistic Gun 2 | . 14 14 11 . . . Ballistic Cannon 3 | . . . . 7 6 . Launcher 8 | . 12 14 2 9 8 6 Peak Build Rating 33 | 5 5 12 14 15 33 24 Average Rating 17 | 4 4 8 13 9 22 22 On Entrance 8 | . 5 4 12 14 11 16 Avg Prop Armor Cover (%) 5 | . . . . . . 5 Naked Turns . | . . . . . . . Heaviest Build 51 | 7 24 29 33 34 51 38 Greatest Support 51 | 26 26 10 20 40 51 17 Greatest Overweight (x) 11 | . . 2 1 11 8 2 Average Overweight (x) 1 | . . 2 1 2 . 1 Largest Inventory Capacity 15 | 8 15 15 15 15 15 15 Average Capacity 14 | 7 12 15 15 15 15 14 Most Carried 14 | 5 9 12 11 11 14 10 Average Carried 9 | 3 6 9 9 8 11 8 Final Capacity 15 | 8 15 15 15 15 15 5 Final Carried 12 | 4 9 12 11 7 10 4 Class Distribution -------------------- 74% | Mutant 13% | Bomber 8% | Skirmisher 3% | Gunner Dominant Class ---------------- Mutant | -10/Materials Mutant | -10/Mines Mutant | -9/Materials Gunner | -9/Mines Mutant | -8/Materials Mutant | -7/Factory Resources | -11 -10 -10 -9 -9 -8 -7 ----------- Run | Yrd Mat Min Mat Min Mat Fac Matter Collected 1332 | 200 84 196 . 59 774 19 Remotely . | . . . . . . . Salvage Created 1434 | . 168 125 . 88 919 134 Parts 101 | . 17 5 . 7 70 2 Haulers Intercepted 2 | . . . . . 2 . Recyclers Shooed 2 | . . . . . 2 . Parts Field Recycled . | . . . . . . . Retrieved Matter . | . . . . . . . Parts Self-Destructed . | . . . . . . . Prevented . | . . . . . . . Parts Restored . | . . . . . . . Kills | -11 -10 -10 -9 -9 -8 -7 ------- Run | Yrd Mat Min Mat Min Mat Fac Combat Hostiles Destroyed 48 | . 4 4 . 5 30 5 Melee 1 | . . . . . 1 . Guns 8 | . 1 1 . 4 1 1 Cannons 3 | . . . . . 3 . AOE 35 | . 3 3 . 1 24 4 Classes Destroyed 14 | . 4 1 . 1 7 1 Worker 5 | . 2 . . . 3 . Builder 6 | . 2 . . . 3 1 Tunneler 1 | . . 1 . . . . Hauler 2 | . . . . . 2 . Recycler 2 | . . . . . 2 . Mechanic 1 | . . . . . 1 . Operator 1 | . . . . . 1 . Watcher 5 | . 1 . . . 4 . Swarmer 11 | . . . . 3 8 . Grunt 25 | . 4 4 . 2 15 . Brawler 2 | . . . . . 2 . Protector 2 | . . . . . 1 1 Sentry 5 | . . . . . 4 1 Specialist 3 | . . . . . . 3 Best Kill Streak 10 | . 6 2 . 3 10 5 Combat Bots Only 8 | . 2 2 . 3 8 4 Max Kills in Single Turn 3 | . 3 2 . 1 3 2 Gunslinging . | . . . . . . . Exploded 3 | . 1 2 . 1 3 2 Melee 1 | . . . . . 1 . Uniques/NPCs Destroyed . | . . . . . . . Combat | -11 -10 -10 -9 -9 -8 -7 -------- Run | Yrd Mat Min Mat Min Mat Fac Hostile Shots Fired 402 | . 36 12 . 34 131 189 Missed 150 | . 14 5 . 10 43 78 Hits 252 | . 22 7 . 24 88 111 Projectile 252 | . 22 7 . 24 88 111 Critical Strikes 6 | . 1 . . . 5 . Part Disruptions 1 | . . 1 . . . . Damage Taken 4157 | . 268 117 . 288 1676 1808 Core 1132 | . 107 . . 81 242 702 Absorbed by Shields . | . . . . . . . Regen/Repaired (Parts) 50 | . . . 50 . . . Core Remaining (%) 73 | 100 . 57 . 79 56 . Volleys Fired 105 | . 19 9 1 12 52 12 Largest 4 | . 2 2 2 3 4 2 Hottest 169 | . 50 50 60 90 169 94 Shots Fired 202 | . 31 17 2 23 112 17 Gun 80 | . 19 9 2 17 25 8 Cannon 39 | . . . . 2 37 . Launcher 83 | . 12 8 . 4 50 9 Special . | . . . . . . . Kinetic 73 | . 19 9 1 7 37 . Thermal 38 | . . . 1 12 17 8 Explosive 83 | . 12 8 . 4 50 9 Electromagnetic 8 | . . . . . 8 . Robot Hit Streak 8 | . 5 4 . 4 8 8 Robot Miss Streak 4 | . 2 2 2 2 4 4 Penetration Max . | . . . . . . . Secondary Targets . | . . . . . . . Shots Hit Robots 71 | . 14 4 . 11 31 11 Core Hits 143 | . 14 9 . 9 89 22 Critical Kills . | . . . . . . . Critical Parts Destroyed . | . . . . . . . Critical Strikes 1 | . . . . . . 1 Burn 1 | . . . . . . 1 Melee Attacks . | . . . . . . . Impact . | . . . . . . . Slashing . | . . . . . . . Piercing . | . . . . . . . Sneak Attacks . | . . . . . . . Combat Hostiles . | . . . . . . . Follow-up Attacks . | . . . . . . . Damage Inflicted 6969 | . 621 335 . 239 4389 1385 Guns 418 | . 87 15 . 113 94 109 Cannons 250 | . . . . . 250 . Explosions 6157 | . 534 320 . 126 3901 1276 Melee . | . . . . . . . Ramming 144 | . . . . . 144 . Kinetic 374 | . 87 15 . 22 250 . Thermal 277 | . . . . 91 77 109 Explosive 6090 | . 534 320 . 126 3834 1276 Electromagnetic 84 | . . . . . 84 . Impact . | . . . . . . . Slashing . | . . . . . . . Piercing . | . . . . . . . Highest Corruption 2 | . . . . . 2 2 Average Corruption 1 | . . . . . 2 1 Corruption Purged . | . . . . . . . Corruption Blocked . | . . . . . . . Effects 3 | . . . . . 2 1 Message Errors 1 | . . . . . 1 . Matter Fused 1 | . . . . . . 1 Alerts 1 | . . . . . 1 . Overload Shots . | . . . . . . . Overflow Damage 147 | . . 8 . . 139 . Projectiles . | . . . . . . . Explosions 147 | . . 8 . . 139 . Melee . | . . . . . . . Knockbacks 1 | . . . . . 1 . Impact . | . . . . . . . Kinetic 1 | . . . . . 1 . Secondary . | . . . . . . . Self-Inflicted Damage 689 | . 56 36 . . 404 193 Shots 20 | . 2 2 . . 11 5 Rammed . | . . . . . . . Targets Rammed 45 | . . . . . 45 . Kicked 45 | . . . . . 45 . Crushed . | . . . . . . . Highest Temperature 195 | . 6 21 6 27 195 23 Average Temperature 41 | . 6 12 4 15 54 9 Received Heat Transfer 1213 | . 54 73 . 123 693 270 Siege Activations . | . . . . . . . Martial Activations . | . . . . . . . Shielding Activations . | . . . . . . . Robots Disrupted . | . . . . . . . Combat Hostiles . | . . . . . . . Robots Corrupted . | . . . . . . . Combat Hostiles . | . . . . . . . Parts Fried . | . . . . . . . Impact Corruptions . | . . . . . . . Robots Melted . | . . . . . . . Combat Hostiles . | . . . . . . . Parts Melted . | . . . . . . . Heat Transferred 615 | . . . . 200 175 240 Parts Sabotaged . | . . . . . . . Parts Stolen . | . . . . . . . Parts Stripped . | . . . . . . . Power Chain Reactions . | . . . . . . . Alert | -11 -10 -10 -9 -9 -8 -7 ------- Run | Yrd Mat Min Mat Min Mat Fac Maximum Alert Level 3 | . . . . . 3 2 Low Security (%) 52 | 100 100 100 100 100 25 34 Level 1 24 | . . . . . 17 62 Level 2 17 | . . . . . 44 2 Level 3 4 | . . . . . 12 . Level 4 . | . . . . . . . Level 5 . | . . . . . . . High Security . | . . . . . . . Max Security . | . . . . . . . Peak Influence 830 | . 124 88 22 85 830 415 Initial 371 | . . 44 14 . . 371 Average 239 | . 60 48 11 41 395 255 Influence Increases 2112 | . 194 165 18 165 1336 234 Destroy 0b10 Robot/C 960 | . 80 120 . 100 580 80 Destroy 0b10 Robot/NC 125 | . 25 5 . . 85 10 Destroy Leader 204 | . 22 10 . 20 132 20 Allied During Kill 3 | . . 3 . . . . Successful Hack 3 | . . . 3 . . . Disable Machine 225 | . . . . 30 150 45 Destroy Structure 562 | . 67 27 . 15 389 64 Partial Spotted 15 | . . . 15 . . . Lose Combat Pursuer 15 | . . . . . . 15 Influence Decreases 1987 | . 80 242 55 165 518 927 Entered New Map 540 | . . 70 23 . . 447 Time Decay 1077 | . 70 122 32 125 378 350 Lost Part 330 | . 10 10 . 40 140 130 Lost Ally 40 | . . 40 . . . . Squads Dispatched 9 | . . . 1 . 5 3 Investigation 2 | . . . 1 . . 1 Extermination 1 | . . . . . . 1 Reinforcement 2 | . . . . . 1 1 Assault 1 | . . . . . 1 . Garrison 3 | . . . . . 3 . Intercept . | . . . . . . . Searches Triggered . | . . . . . . . Construction Impeded 2 | . . . . . 1 1 Haulers Reinforced . | . . . . . . . Active Scanning Responses . | . . . . . . . Cargo Convoy Interrupts 1 | . . . . . . 1 Stealth | -11 -10 -10 -9 -9 -8 -7 --------- Run | Yrd Mat Min Mat Min Mat Fac Distress Signals 5 | . . 1 . . 4 . Communications Jammed . | . . . . . . . Distress Signals . | . . . . . . . Times Spotted 82 | . 8 7 1 5 39 22 Peak Tracking Total 15 | . 3 2 1 3 5 15 Tactical Retreats 1 | . . . . . . 1 Traps | -11 -10 -10 -9 -9 -8 -7 ------- Run | Yrd Mat Min Mat Min Mat Fac Traps Triggered 2 | . . . 1 . . 1 Indirectly . | . . . . . . . Trap Hack Attempts . | . . . . . . . Triggered . | . . . . . . . Disarmed . | . . . . . . . Reprogrammed . | . . . . . . . Reused . | . . . . . . . Traps Extracted . | . . . . . . . Installed . | . . . . . . . Triggered . | . . . . . . . Most Traps Carried 4 | . . 4 4 4 4 . Machines | -11 -10 -10 -9 -9 -8 -7 ---------- Run | Yrd Mat Min Mat Min Mat Fac Machines Disabled 15 | . . . . 2 10 3 Max in Single Turn 2 | . . . . 1 2 1 Machines Repaired . | . . . . . . . Machines Dismantled . | . . . . . . . Machines Sabotaged . | . . . . . . . Overloaded Fab Kills . | . . . . . . . Hacking | -11 -10 -10 -9 -9 -8 -7 --------- Run | Yrd Mat Min Mat Min Mat Fac Machines Accessed 1 | . . . 1 . . . Terminals . | . . . . . . . Fabricators . | . . . . . . . Repair Stations 1 | . . . 1 . . . Recycling Units . | . . . . . . . Scanalyzers . | . . . . . . . Garrison Access . | . . . . . . . Total Hacks 3 | . . . 3 . . . Successful 2 | . . . 2 . . . Failed 1 | . . . 1 . . . Catastrophic . | . . . . . . . Database Lockouts . | . . . . . . . Manual . | . . . . . . . Terminals . | . . . . . . . Fabricators . | . . . . . . . Repair Stations 3 | . . . 3 . . . Recycling Units . | . . . . . . . Scanalyzers . | . . . . . . . Garrison Access . | . . . . . . . Terminal Hacks . | . . . . . . . Fabricator Hacks . | . . . . . . . Repair Station Hacks 2 | . . . 2 . . . Scan Component 1 | . . . 1 . . . Repair 1 | . . . 1 . . . Recycling Unit Hacks . | . . . . . . . Scanalyzer . | . . . . . . . Garrison Access Hacks . | . . . . . . . Unauthorized Hacks . | . . . . . . . Terminals . | . . . . . . . Fabricators . | . . . . . . . Repair Stations . | . . . . . . . Recycling Units . | . . . . . . . Scanalyzers . | . . . . . . . Garrison Access . | . . . . . . . Data Cores Recovered . | . . . . . . . Used . | . . . . . . . Hacking Detections . | . . . . . . . Full Trace Events . | . . . . . . . Feedback Events . | . . . . . . . Feedback Blocked . | . . . . . . . Robot Schematics Acquired . | . . . . . . . Robots Built . | . . . . . . . Authchips . | . . . . . . . Time . | . . . . . . . Total Robot Build Rating . | . . . . . . . Part Schematics Acquired . | . . . . . . . Parts Built . | . . . . . . . Authchips . | . . . . . . . Time . | . . . . . . . Total Part Build Rating . | . . . . . . . Part Studies Acquired . | . . . . . . . Parts Repaired 1 | . . . 1 . . . Time 26 | . . . 26 . . . Parts Recycled . | . . . . . . . Recycled Matter . | . . . . . . . Retrieved Matter . | . . . . . . . Retrieved Components . | . . . . . . . Parts Scanalyzed . | . . . . . . . Part Schematics Acquired . | . . . . . . . Parts Damaged . | . . . . . . . Bothacking | -11 -10 -10 -9 -9 -8 -7 ------------ Run | Yrd Mat Min Mat Min Mat Fac Used RIF Installer . | . . . . . . . Robots Hacked . | . . . . . . . Non-combat . | . . . . . . . Combat . | . . . . . . . Robot Hacks Applied . | . . . . . . . Relay Couplers Released . | . . . . . . . Fabnet Peak Effective % . | . . . . . . . Robots Rewired . | . . . . . . . Allies Hacked . | . . . . . . . Hacks Repelled . | . . . . . . . Allies | -11 -10 -10 -9 -9 -8 -7 -------- Run | Yrd Mat Min Mat Min Mat Fac Total Allies 2 | . . 2 . . . . Largest Group 2 | . . 2 . . . . Highest-Rated Group 45 | . . 45 . . . . Highest-Rated Ally 31 | . . 31 . . . . Total Orders . | . . . . . . . Ally Attacks 11 | . . 11 . . . . Total Damage 167 | . . 167 . . . . Kills 3 | . . 3 . . . . Allies Corrupted . | . . . . . . . Allies Melted . | . . . . . . . Intel | -11 -10 -10 -9 -9 -8 -7 ------- Run | Yrd Mat Min Mat Min Mat Fac Active Infowar (turns) 1468 | . . . . . 670 798 Optics 1468 | . . . . . 670 798 Robot Analysis Total . | . . . . . . . Derelict Logs Recovered . | . . . . . . . Drone Launches . | . . . . . . . Drone Recoveries . | . . . . . . . Exploration | -11 -10 -10 -9 -9 -8 -7 ------------- Run | Yrd Mat Min Mat Min Mat Fac Turns Passed 2734 | 75 199 267 83 267 1045 798 Spaces Moved 1444 | 72 160 212 60 114 536 290 Core 32 | 8 . . . 19 1 4 Treads 90 | . . . . 31 59 . Legs 762 | . . . . . 476 286 Wheels 560 | 64 160 212 60 64 . . Hover . | . . . . . . . Flight . | . . . . . . . Fastest Speed 50 | 50 90 110 95 95 130 50 Average Speed 157 | 85 90 110 95 199 149 259 Slowest Speed 600 | 90 90 110 95 600 450 270 Overloaded Moves . | . . . . . . . Propulsion Burnouts . | . . . . . . . Robots Hopped . | . . . . . . . Potential Cave-ins 4 | . . . . . 4 . Cave-ins Triggered . | . . . . . . . Exploration Rate (%) 21 | 3 27 27 8 27 50 11 Regions Visited 6 Branch Regions 2 Pre-discovered Areas . | . . . . . . . Known Exits Taken . | . . . . . . . Unknown Exits Taken 6 | 1 1 1 1 1 1 . Scrap Searched . | . . . . . . . Spaces Dug 17 | . . . . . 17 . Terrain Destroyed 731 | . 68 35 . 27 530 71 Melee . | . . . . . . . Projectile 2 | . . . . . 2 . AOE 729 | . 68 35 . 27 528 71 Terrain Rammed . | . . . . . . . Walls Destroyed . | . . . . . . . Machines Disabled . | . . . . . . . Actions | -11 -10 -10 -9 -9 -8 -7 --------- Run | Yrd Mat Min Mat Min Mat Fac Total 1705 | 85 186 230 84 132 671 317 Wait 23 | . 1 . 19 . . 3 Move 1438 | 71 159 211 59 113 535 290 Hop . | . . . . . . . Pick Up 45 | 9 5 6 2 1 19 3 Fast Attach . | . . . . . . . Attach 35 | 5 . 3 3 5 10 9 Detach . | . . . . . . . Swap 8 | . 2 1 . 1 4 . Drop 6 | . . . . . 6 . Fire 105 | . 19 9 1 12 52 12 Melee . | . . . . . . . Ram . | . . . . . . . Kick 45 | . . . . . 45 . Crush . | . . . . . . . Escape Stasis . | . . . . . . . Rewire . | . . . . . . . Trap . | . . . . . . . Miscellaneous . | . . . . . . . Route ------- -11/Scrapyard -10/Materials -10/Mines -9/Materials -9/Mines -8/Materials -7/Factory History --------- Turn | Location | Event 8 | -11/Scrapyard | Discovered new exit (range 16) 76 | -11/Scrapyard | Entered Materials 253 | -10/Materials | Discovered new exit (range 8) 275 | -10/Materials | Entered Mines 312 | -10/Mines | Build established: Mutant 364 | -10/Mines | Found a hidden stash of uninstalled traps 392 | -10/Mines | Excavation squad dispatched 392 | -10/Mines | A large section of the Mines collapsed 535 | -10/Mines | Discovered new exit (range 6) 542 | -10/Mines | Entered Materials 542 | -9/Materials | Evolved 2 slots: Power x1, Weapon x1 581 | -9/Materials | Repaired Grenade Launcher 611 | -9/Materials | Discovered new exit (range 16) 625 | -9/Materials | Entered Mines 752 | -9/Mines | YI-UF0 nonchalantly dropped a Grenade Launcher on the ground 868 | -9/Mines | Discovered new exit (range 6) 892 | -9/Mines | Entered Materials 892 | -8/Materials | Evolved 2 slots: Propulsion x1, Weapon x1 1007 | -8/Materials | Garrison activated, responded to threat 1123 | -8/Materials | Build established: Bomber 1692 | -8/Materials | First assault squad dispatched 1775 | -8/Materials | Lost 9 parts (2p3n4w) 1796 | -8/Materials | Destroyed 8 combat bots 1895 | -8/Materials | Discovered new exit (range 19) 1937 | -8/Materials | Entered Factory 1937 | -7/Factory | Evolved 2 slots: Power x1, Utility x1 2025 | -7/Factory | Build established: Mutant 2711 | -7/Factory | Cargo convoy interrupted 2721 | -7/Factory | Core integrity fell below 50% 2734 | -7/Factory | Core integrity fell below 20% 2735 | -7/Factory | Destroyed by X-57 Shotgunner with Shotgun Last Messages --------------- I-36 Angel destroyed. P-60 Hacker resets A-27 Freighter, system corruption cleaned. Grenade Launcher destroyed. Cryofiber Web destroyed. Identified Prc. Assault Rifle. Faulty integration damages Lrg. Storage Unit (-40). X-67 Chaingunner suffers critical hit (Burn). X-67 Chaingunner destroyed. Penetrated by Slug. The unstable cave ceiling collapses. 37 Matter crushed. Slug penetrates Earth. Lrg. Storage Unit destroyed. Faulty Prc. Assault Rifle destroyed. Hvy. Particle Gun destroyed. Slug penetrates Wall. System corrupted: Matter fused (-9). [Achievement: 5k Club] Map ----- +----------------------------------------------------+ | #################+##############????????????? | | ???????? | | ???????? | | ??"""" """ """ """" """" """" ???????? | | ???""" """ """ """" """" """" ????????? | | ??"""" """ """ """" """" """" ?????????????????? | | ??"""" """ """" """" """"? #???????????????? | | ??"""" """" """" """" #???????????????? | | ??"""" """" """" """" #???????????????? | | ??"""" """" """" """" #???????????????? | | #???????????????? | | #???????????????? | | !!! != #???????????????? | | ##########""!""# !A#########??????????????? | | ^ ??????????#""F""# =#? =???????????????? | | ????????????# """ # m # ?????????????????? | | ?????????????####### # ??????????????????? | | ?????????????## ##??#u ; "????????????????????? | | ?????????##### # ### ! ; ?????????????????????? | | ?????????# # #i %! #??????????????????????? | | ?????????## | #??????????????????????? | | ?????????# g x ###+#######+###????????? | | ?????????# g! #????????? | | ??????????# g %%xh #????????? | | ???? Y g ! % #????????? | | ??? #### g % ! @ #????????? | | ??????????# < pm p #????????? | | ??????????# = # ;#;#+##### #????????? | | ??????????###+###+ ### ] ??????? #????????? | | ????????????#???#%#??# ??????????????????? | | ????????????????# ???# """" """"?????????????????? | | ????????????????#????# """" """" ???????????????? | | ?????????????????????# """" """" #??????????????? | | ?????????????????????# """" """" #??????????????? | | ?????????????????????# ?? #??????????????? | | ?????????????????????# """" """???#??????????????? | | ?????????????????????# "??? ""???????????????????? | | ?????????????????????# "??? "????????????????????? | | ?????????????????????# "????"????????????????????? | | ?????????????????????? ??????????????????????????? | | ??????????????????????#??????????????????????????? | | ?????????????????????????????????????????????????? | | ?????????????????????????????????????????????????? | | ?????????????????????????????????????????????????? | | ?????????????????????????????????????????????????? | | ?????????????????????????????????????????????????? | | ?????????????????????????????????????????????????? | | ?????????????????????????????????????????????????? | | ?????????????????????????????????????????????????? | | ?????????????????????????????????????????????????? | +----------------------------------------------------+ Best States ------------- Heat Dissipation 45 Energy Generation 23 Energy Capacity 380 Matter Stores 254 Matter Capacity 300 Sight Range 20 Terrain Scan Density 10 Base Temperature (-) 100 Evasion (%) 55 Recoil Reduction 2 Item Schematics ----------------- None Robot Schematics ------------------ None Fabricated ------------ Nothing Repaired ---------- Grenade Launcher | 16% | -9/Materials Studied --------- None Alien Tech Used ----------------- None Achievements -------------- 5k Club For Emergencies Only Jackpot Let's See Who's Tougher Loot Pinata Oops Remodeling Significant Disruption Troublemaker Challenges ------------ None Game ------ Seed ArchitectSmartFlamer Manual? 0 Play Time 00:27:03 Cumulative 2.9 hours Start 2026.02.23 @ 02:17:07 End 2026.02.23 @ 02:44:21 Sessions 1 Manual Loads 0 Difficulty Rogue Special Mode None Game No. 11 Rogue 11 Adventurer 0 Explorer 0 Win Type - Total 0 Types 0/0/0/0/0/0/0/0/0/0 Lore% 1 Gallery% 6 Achievement% 5 Wizard Run 0 Options --------- Layout 1 ASCII 0 Keyboard 0 Movement Numpad Keybinds 0 Fullscreen 2 Font 48/Terminus Map View 50x35 Zoom Use 0% Tactical HUD 0 Map Filters NONE Filters NONE Steam 1 RUN: 6303d5c3-9bc9-489e-9174-d841cbcb1652